Workbook

Sheet Subject 1
C2: Set 1 | D2: Set 2 | E2: Set 3 | F2: Set 4 | J2: RTF | K2: Velocity (m/s)
B3: Fastest velocity (m/s) | C3: 0.8964481354 | D3: 0.81 | E3: 0.7135 | F3: 0.6343288422 | J3: 1RTF | K3: =$K$24*1+$K$25 -> 0.5730770655
B4: RTF | C4: 17 | D4: 13 | E4: 8 | F4: 4 | J4: 2RTF | K4: =$K$24*2+$K$25 -> 0.5931288738
J5: 3RTF | K5: =$K$24*3+$K$25 -> 0.6131806821
J6: 4RTF | K6: =$K$24*4+$K$25 -> 0.6332324904
J7: 5RTF | K7: =$K$24*5+$K$25 -> 0.6532842987
J8: 6RTF | K8: =$K$24*6+$K$25 -> 0.673336107
J9: 7RTF | K9: =$K$24*7+$K$25 -> 0.6933879153
J10: 8RTF | K10: =$K$24*8+$K$25 -> 0.7134397236
J11: 9RTF | K11: =$K$24*9+$K$25 -> 0.7334915319
J12: 10RTF | K12: =$K$24*10+$K$25 -> 0.7535433402
J13: 11RTF | K13: =$K$24*11+$K$25 -> 0.7735951485
J14: 12RTF | K14: =$K$24*12+$K$25 -> 0.7936469568
J15: 13RTF | K15: =$K$24*13+$K$25 -> 0.8136987652
J16: 14RTF | K16: =$K$24*14+$K$25 -> 0.8337505735
J17: 15RTF | K17: =$K$24*15+$K$25 -> 0.8538023818
J18: 16RTF | K18: =$K$24*16+$K$25 -> 0.8738541901
B19: Slope | C19: =SLOPE(C4:F4,C3:F3) -> 49.84352998 | J19: 17RTF | K19: =$K$24*17+$K$25 -> 0.8939059984
B20: y-intercept | C20: =INTERCEPT(C4:F4,C3:F3) -> -27.55898652 | E20: Cells to modify | J20: 18RTF | K20: =$K$24*18+$K$25 -> 0.9139578067
B21: Velocity for predicting (m/s) | C21: 0.63 | J21: 19RTF | K21: =$K$24*19+$K$25 -> 0.934009615
B22: Predicted RTF (repetitions) | C22: =C19*C21+C20 -> 3.842437363 | J22: 20RTF | K22: =$K$24*20+$K$25 -> 0.9540614233
B23: Goodness-of-fit | C23: =RSQ(C4:F4,C3:F3) -> 0.9994529086
J24: Slope (m/RTF•s) | K24: =SLOPE(C3:F3,C4:F4) -> 0.02005180831
J25: Velocity intercept (m/s) | K25: =INTERCEPT(C3:F3,C4:F4) -> 0.5530252571
